Workbook

Sheet Año>=100
B2: =Idiomas!$A$18 -> Calendario Gregoriano desde: | G2: 15-10-1582 | N2: =IF($J$27<Rango_Inicio_Gregoriano_Serie,Idiomas!$A$5,Idiomas!$A$4) -> Calendario Gregoriano | Y2: =Idiomas!$A$6 & " " -> La semana comienza en | Z2: 1900-01-02
B3: =Idiomas!$A$17 -> Idioma: | G3: Español | L3: =$G$2 -> 15-10-1582 | N3: ¦ | O3: 9999-12-31 | Y3: =Idiomas!$A$7 & " " -> Muestra los días de otros meses | Z3: û
P4: × | Q4: Ø
B5: =IF(Rango_MesNum=1,12,Rango_MesNum-1) -> 10 | C5: =INDEX(Rango_MesesNom,B5) -> 2024-10-01 | G5: =G27 -> 15 | H5: =H27 -> 82 | J5: × | K5: =VLOOKUP(Rango_MesNom,X39:Z50,3,FALSE) -> 11 | L5: 2024-11-01 | P5: 15 | Q5: 82 | R5: Ø | T5: =IF(Rango_MesNum=12,1,Rango_MesNum+1) -> 12 | U5: =INDEX(Rango_MesesNom,T5) -> 2024-12-01 | Y5: =Y27 -> 15 | Z5: =Z27 -> 82
B6: =Rango_DíaSemana -> 1900-01-02 | C6: =B6+1 -> 1900-01-03 | D6: =C6+1 -> 1900-01-04 | E6: 1900-01-05 | F6: 1900-01-06 | G6: 1900-01-07 | H6: 1900-01-08 | K6: =Rango_DíaSemana -> 1900-01-02 | L6: =K6+1 -> 1900-01-03 | M6: =L6+1 -> 1900-01-04 | N6: 1900-01-05 | O6: 1900-01-06 | P6: 1900-01-07 | Q6: 1900-01-08 | T6: =Rango_DíaSemana -> 1900-01-02 | U6: =T6+1 -> 1900-01-03 | V6: =U6+1 -> 1900-01-04 | W6: 1900-01-05 | X6: 1900-01-06 | Y6: 1900-01-07 | Z6: 1900-01-08
B7: =HYPERLINK(MouseOver(B29),IFERROR(IF(OR($Z$3="ü",ObtenerMesVBA(B29)=$B$5),ObtenerDíaVBA(B29),""),"")) ->  | C7: =HYPERLINK(MouseOver(C29),IFERROR(IF(OR($Z$3="ü",ObtenerMesVBA(C29)=$B$5),ObtenerDíaVBA(C29),""),"")) ->  | D7: =HYPERLINK(MouseOver(D29),IFERROR(IF(OR($Z$3="ü",ObtenerMesVBA(D29)=$B$5),ObtenerDíaVBA(D29),""),"")) ->  | E7: =HYPERLINK(MouseOver(E29),IFERROR(IF(OR($Z$3="ü",ObtenerMesVBA(E29)=$B$5),ObtenerDíaVBA(E29),""),"")) ->  | F7: =HYPERLINK(MouseOver(F29),IFERROR(IF(OR($Z$3="ü",ObtenerMesVBA(F29)=$B$5),ObtenerDíaVBA(F29),""),"")) -> 1 | G7: =HYPERLINK(MouseOver(G29),IFERROR(IF(OR($Z$3="ü",ObtenerMesVBA(G29)=$B$5),ObtenerDíaVBA(G29),""),"")) -> 2 | H7: =HYPERLINK(MouseOver(H29),IFERROR(IF(OR($Z$3="ü",ObtenerMesVBA(H29)=$B$5),ObtenerDíaVBA(H29),""),"")) -> 3 | K7: =HYPERLINK(MouseOver(K29),IFERROR(IF(OR($Z$3="ü",ObtenerMesVBA(K29)=$K$5),ObtenerDíaVBA(K29),""),"")) -> 1 | L7: =HYPERLINK(MouseOver(L29),IFERROR(IF(OR($Z$3="ü",ObtenerMesVBA(L29)=$K$5),ObtenerDíaVBA(L29),""),"")) -> 2 | M7: =HYPERLINK(MouseOver(M29),IFERROR(IF(OR($Z$3="ü",ObtenerMesVBA(M29)=$K$5),ObtenerDíaVBA(M29),""),"")) -> 3 | N7: =HYPERLINK(MouseOver(N29),IFERROR(IF(OR($Z$3="ü",ObtenerMesVBA(N29)=$K$5),ObtenerDíaVBA(N29),""),"")) -> 4 | O7: =HYPERLINK(MouseOver(O29),IFERROR(IF(OR($Z$3="ü",ObtenerMesVBA(O29)=$K$5),ObtenerDíaVBA(O29),""),"")) -> 5 | P7: =HYPERLINK(MouseOver(P29),IFERROR(IF(OR($Z$3="ü",ObtenerMesVBA(P29)=$K$5),ObtenerDíaVBA(P29),""),"")) -> 6 | Q7: =HYPERLINK(MouseOver(Q29),IFERROR(IF(OR($Z$3="ü",ObtenerMesVBA(Q29)=$K$5),ObtenerDíaVBA(Q29),""),"")) -> 7 | T7: =HYPERLINK(MouseOver(T29),IFERROR(IF(OR($Z$3="ü",ObtenerMesVBA(T29)=$T$5),ObtenerDíaVBA(T29),""),"")) ->  | U7: =HYPERLINK(MouseOver(U29),IFERROR(IF(OR($Z$3="ü",ObtenerMesVBA(U29)=$T$5),ObtenerDíaVBA(U29),""),"")) ->  | V7: =HYPERLINK(MouseOver(V29),IFERROR(IF(OR($Z$3="ü",ObtenerMesVBA(V29)=$T$5),ObtenerDíaVBA(V29),""),"")) -> 1 | W7: =HYPERLINK(MouseOver(W29),IFERROR(IF(OR($Z$3="ü",ObtenerMesVBA(W29)=$T$5),ObtenerDíaVBA(W29),""),"")) -> 2 | X7: =HYPERLINK(MouseOver(X29),IFERROR(IF(OR($Z$3="ü",ObtenerMesVBA(X29)=$T$5),ObtenerDíaVBA(X29),""),"")) -> 3 | Y7: =HYPERLINK(MouseOver(Y29),IFERROR(IF(OR($Z$3="ü",ObtenerMesVBA(Y29)=$T$5),ObtenerDíaVBA(Y29),""),"")) -> 4 | Z7: =HYPERLINK(MouseOver(Z29),IFERROR(IF(OR($Z$3="ü",ObtenerMesVBA(Z29)=$T$5),ObtenerDíaVBA(Z29),""),"")) -> 5
B8: =HYPERLINK(MouseOver(B30),IFERROR(IF(OR($Z$3="ü",ObtenerMesVBA(B30)=$B$5),ObtenerDíaVBA(B30),""),"")) -> 4 | C8: =HYPERLINK(MouseOver(C30),IFERROR(IF(OR($Z$3="ü",ObtenerMesVBA(C30)=$B$5),ObtenerDíaVBA(C30),""),"")) -> 5 | D8: =HYPERLINK(MouseOver(D30),IFERROR(IF(OR($Z$3="ü",ObtenerMesVBA(D30)=$B$5),ObtenerDíaVBA(D30),""),"")) -> 6 | E8: =HYPERLINK(MouseOver(E30),IFERROR(IF(OR($Z$3="ü",ObtenerMesVBA(E30)=$B$5),ObtenerDíaVBA(E30),""),"")) -> 7 | F8: =HYPERLINK(MouseOver(F30),IFERROR(IF(OR($Z$3="ü",ObtenerMesVBA(F30)=$B$5),ObtenerDíaVBA(F30),""),"")) -> 8 | G8: =HYPERLINK(MouseOver(G30),IFERROR(IF(OR($Z$3="ü",ObtenerMesVBA(G30)=$B$5),ObtenerDíaVBA(G30),""),"")) -> 9 | H8: =HYPERLINK(MouseOver(H30),IFERROR(IF(OR($Z$3="ü",ObtenerMesVBA(H30)=$B$5),ObtenerDíaVBA(H30),""),"")) -> 10 | K8: =HYPERLINK(MouseOver(K30),IFERROR(IF(OR($Z$3="ü",ObtenerMesVBA(K30)=$K$5),ObtenerDíaVBA(K30),""),"")) -> 8 | L8: =HYPERLINK(MouseOver(L30),IFERROR(IF(OR($Z$3="ü",ObtenerMesVBA(L30)=$K$5),ObtenerDíaVBA(L30),""),"")) -> 9 | M8: =HYPERLINK(MouseOver(M30),IFERROR(IF(OR($Z$3="ü",ObtenerMesVBA(M30)=$K$5),ObtenerDíaVBA(M30),""),"")) -> 10 | N8: =HYPERLINK(MouseOver(N30),IFERROR(IF(OR($Z$3="ü",ObtenerMesVBA(N30)=$K$5),ObtenerDíaVBA(N30),""),"")) -> 11 | O8: =HYPERLINK(MouseOver(O30),IFERROR(IF(OR($Z$3="ü",ObtenerMesVBA(O30)=$K$5),ObtenerDíaVBA(O30),""),"")) -> 12 | P8: =HYPERLINK(MouseOver(P30),IFERROR(IF(OR($Z$3="ü",ObtenerMesVBA(P30)=$K$5),ObtenerDíaVBA(P30),""),"")) -> 13 | Q8: =HYPERLINK(MouseOver(Q30),IFERROR(IF(OR($Z$3="ü",ObtenerMesVBA(Q30)=$K$5),ObtenerDíaVBA(Q30),""),"")) -> 14 | T8: =HYPERLINK(MouseOver(T30),IFERROR(IF(OR($Z$3="ü",ObtenerMesVBA(T30)=$T$5),ObtenerDíaVBA(T30),""),"")) -> 6 | U8: =HYPERLINK(MouseOver(U30),IFERROR(IF(OR($Z$3="ü",ObtenerMesVBA(U30)=$T$5),ObtenerDíaVBA(U30),""),"")) -> 7 | V8: =HYPERLINK(MouseOver(V30),IFERROR(IF(OR($Z$3="ü",ObtenerMesVBA(V30)=$T$5),ObtenerDíaVBA(V30),""),"")) -> 8 | W8: =HYPERLINK(MouseOver(W30),IFERROR(IF(OR($Z$3="ü",ObtenerMesVBA(W30)=$T$5),ObtenerDíaVBA(W30),""),"")) -> 9 | X8: =HYPERLINK(MouseOver(X30),IFERROR(IF(OR($Z$3="ü",ObtenerMesVBA(X30)=$T$5),ObtenerDíaVBA(X30),""),"")) -> 10 | Y8: =HYPERLINK(MouseOver(Y30),IFERROR(IF(OR($Z$3="ü",ObtenerMesVBA(Y30)=$T$5),ObtenerDíaVBA(Y30),""),"")) -> 11 | Z8: =HYPERLINK(MouseOver(Z30),IFERROR(IF(OR($Z$3="ü",ObtenerMesVBA(Z30)=$T$5),ObtenerDíaVBA(Z30),""),"")) -> 12
B9: =HYPERLINK(MouseOver(B31),IFERROR(IF(OR($Z$3="ü",ObtenerMesVBA(B31)=$B$5),ObtenerDíaVBA(B31),""),"")) -> 11 | C9: =HYPERLINK(MouseOver(C31),IFERROR(IF(OR($Z$3="ü",ObtenerMesVBA(C31)=$B$5),ObtenerDíaVBA(C31),""),"")) -> 12 | D9: =HYPERLINK(MouseOver(D31),IFERROR(IF(OR($Z$3="ü",ObtenerMesVBA(D31)=$B$5),ObtenerDíaVBA(D31),""),"")) -> 13 | E9: =HYPERLINK(MouseOver(E31),IFERROR(IF(OR($Z$3="ü",ObtenerMesVBA(E31)=$B$5),ObtenerDíaVBA(E31),""),"")) -> 14 | F9: =HYPERLINK(MouseOver(F31),IFERROR(IF(OR($Z$3="ü",ObtenerMesVBA(F31)=$B$5),ObtenerDíaVBA(F31),""),"")) -> 15 | G9: =HYPERLINK(MouseOver(G31),IFERROR(IF(OR($Z$3="ü",ObtenerMesVBA(G31)=$B$5),ObtenerDíaVBA(G31),""),"")) -> 16 | H9: =HYPERLINK(MouseOver(H31),IFERROR(IF(OR($Z$3="ü",ObtenerMesVBA(H31)=$B$5),ObtenerDíaVBA(H31),""),"")) -> 17 | K9: =HYPERLINK(MouseOver(K31),IFERROR(IF(OR($Z$3="ü",ObtenerMesVBA(K31)=$K$5),ObtenerDíaVBA(K31),""),"")) -> 15 | L9: =HYPERLINK(MouseOver(L31),IFERROR(IF(OR($Z$3="ü",ObtenerMesVBA(L31)=$K$5),ObtenerDíaVBA(L31),""),"")) -> 16 | M9: =HYPERLINK(MouseOver(M31),IFERROR(IF(OR($Z$3="ü",ObtenerMesVBA(M31)=$K$5),ObtenerDíaVBA(M31),""),"")) -> 17 | N9: =HYPERLINK(MouseOver(N31),IFERROR(IF(OR($Z$3="ü",ObtenerMesVBA(N31)=$K$5),ObtenerDíaVBA(N31),""),"")) -> 18 | O9: =HYPERLINK(MouseOver(O31),IFERROR(IF(OR($Z$3="ü",ObtenerMesVBA(O31)=$K$5),ObtenerDíaVBA(O31),""),"")) -> 19 | P9: =HYPERLINK(MouseOver(P31),IFERROR(IF(OR($Z$3="ü",ObtenerMesVBA(P31)=$K$5),ObtenerDíaVBA(P31),""),"")) -> 20 | Q9: =HYPERLINK(MouseOver(Q31),IFERROR(IF(OR($Z$3="ü",ObtenerMesVBA(Q31)=$K$5),ObtenerDíaVBA(Q31),""),"")) -> 21 | T9: =HYPERLINK(MouseOver(T31),IFERROR(IF(OR($Z$3="ü",ObtenerMesVBA(T31)=$T$5),ObtenerDíaVBA(T31),""),"")) -> 13 | U9: =HYPERLINK(MouseOver(U31),IFERROR(IF(OR($Z$3="ü",ObtenerMesVBA(U31)=$T$5),ObtenerDíaVBA(U31),""),"")) -> 14 | V9: =HYPERLINK(MouseOver(V31),IFERROR(IF(OR($Z$3="ü",ObtenerMesVBA(V31)=$T$5),ObtenerDíaVBA(V31),""),"")) -> 15 | W9: =HYPERLINK(MouseOver(W31),IFERROR(IF(OR($Z$3="ü",ObtenerMesVBA(W31)=$T$5),ObtenerDíaVBA(W31),""),"")) -> 16 | X9: =HYPERLINK(MouseOver(X31),IFERROR(IF(OR($Z$3="ü",ObtenerMesVBA(X31)=$T$5),ObtenerDíaVBA(X31),""),"")) -> 17 | Y9: =HYPERLINK(MouseOver(Y31),IFERROR(IF(OR($Z$3="ü",ObtenerMesVBA(Y31)=$T$5),ObtenerDíaVBA(Y31),""),"")) -> 18 | Z9: =HYPERLINK(MouseOver(Z31),IFERROR(IF(OR($Z$3="ü",ObtenerMesVBA(Z31)=$T$5),ObtenerDíaVBA(Z31),""),"")) -> 19
B10: =HYPERLINK(MouseOver(B32),IFERROR(IF(OR($Z$3="ü",ObtenerMesVBA(B32)=$B$5),ObtenerDíaVBA(B32),""),"")) -> 18 | C10: =HYPERLINK(MouseOver(C32),IFERROR(IF(OR($Z$3="ü",ObtenerMesVBA(C32)=$B$5),ObtenerDíaVBA(C32),""),"")) -> 19 | D10: =HYPERLINK(MouseOver(D32),IFERROR(IF(OR($Z$3="ü",ObtenerMesVBA(D32)=$B$5),ObtenerDíaVBA(D32),""),"")) -> 20 | E10: =HYPERLINK(MouseOver(E32),IFERROR(IF(OR($Z$3="ü",ObtenerMesVBA(E32)=$B$5),ObtenerDíaVBA(E32),""),"")) -> 21 | F10: =HYPERLINK(MouseOver(F32),IFERROR(IF(OR($Z$3="ü",ObtenerMesVBA(F32)=$B$5),ObtenerDíaVBA(F32),""),"")) -> 22 | G10: =HYPERLINK(MouseOver(G32),IFERROR(IF(OR($Z$3="ü",ObtenerMesVBA(G32)=$B$5),ObtenerDíaVBA(G32),""),"")) -> 23 | H10: =HYPERLINK(MouseOver(H32),IFERROR(IF(OR($Z$3="ü",ObtenerMesVBA(H32)=$B$5),ObtenerDíaVBA(H32),""),"")) -> 24 | K10: =HYPERLINK(MouseOver(K32),IFERROR(IF(OR($Z$3="ü",ObtenerMesVBA(K32)=$K$5),ObtenerDíaVBA(K32),""),"")) -> 22 | L10: =HYPERLINK(MouseOver(L32),IFERROR(IF(OR($Z$3="ü",ObtenerMesVBA(L32)=$K$5),ObtenerDíaVBA(L32),""),"")) -> 23 | M10: =HYPERLINK(MouseOver(M32),IFERROR(IF(OR($Z$3="ü",ObtenerMesVBA(M32)=$K$5),ObtenerDíaVBA(M32),""),"")) -> 24 | N10: =HYPERLINK(MouseOver(N32),IFERROR(IF(OR($Z$3="ü",ObtenerMesVBA(N32)=$K$5),ObtenerDíaVBA(N32),""),"")) -> 25 | O10: =HYPERLINK(MouseOver(O32),IFERROR(IF(OR($Z$3="ü",ObtenerMesVBA(O32)=$K$5),ObtenerDíaVBA(O32),""),"")) -> 26 | P10: =HYPERLINK(MouseOver(P32),IFERROR(IF(OR($Z$3="ü",ObtenerMesVBA(P32)=$K$5),ObtenerDíaVBA(P32),""),"")) -> 27 | Q10: =HYPERLINK(MouseOver(Q32),IFERROR(IF(OR($Z$3="ü",ObtenerMesVBA(Q32)=$K$5),ObtenerDíaVBA(Q32),""),"")) -> 28 | T10: =HYPERLINK(MouseOver(T32),IFERROR(IF(OR($Z$3="ü",ObtenerMesVBA(T32)=$T$5),ObtenerDíaVBA(T32),""),"")) -> 20 | U10: =HYPERLINK(MouseOver(U32),IFERROR(IF(OR($Z$3="ü",ObtenerMesVBA(U32)=$T$5),ObtenerDíaVBA(U32),""),"")) -> 21 | V10: =HYPERLINK(MouseOver(V32),IFERROR(IF(OR($Z$3="ü",ObtenerMesVBA(V32)=$T$5),ObtenerDíaVBA(V32),""),"")) -> 22 | W10: =HYPERLINK(MouseOver(W32),IFERROR(IF(OR($Z$3="ü",ObtenerMesVBA(W32)=$T$5),ObtenerDíaVBA(W32),""),"")) -> 23 | X10: =HYPERLINK(MouseOver(X32),IFERROR(IF(OR($Z$3="ü",ObtenerMesVBA(X32)=$T$5),ObtenerDíaVBA(X32),""),"")) -> 24 | Y10: =HYPERLINK(MouseOver(Y32),IFERROR(IF(OR($Z$3="ü",ObtenerMesVBA(Y32)=$T$5),ObtenerDíaVBA(Y32),""),"")) -> 25 | Z10: =HYPERLINK(MouseOver(Z32),IFERROR(IF(OR($Z$3="ü",ObtenerMesVBA(Z32)=$T$5),ObtenerDíaVBA(Z32),""),"")) -> 26
B11: =HYPERLINK(MouseOver(B33),IFERROR(IF(OR($Z$3="ü",ObtenerMesVBA(B33)=$B$5),ObtenerDíaVBA(B33),""),"")) -> 25 | C11: =HYPERLINK(MouseOver(C33),IFERROR(IF(OR($Z$3="ü",ObtenerMesVBA(C33)=$B$5),ObtenerDíaVBA(C33),""),"")) -> 26 | D11: =HYPERLINK(MouseOver(D33),IFERROR(IF(OR($Z$3="ü",ObtenerMesVBA(D33)=$B$5),ObtenerDíaVBA(D33),""),"")) -> 27 | E11: =HYPERLINK(MouseOver(E33),IFERROR(IF(OR($Z$3="ü",ObtenerMesVBA(E33)=$B$5),ObtenerDíaVBA(E33),""),"")) -> 28 | F11: =HYPERLINK(MouseOver(F33),IFERROR(IF(OR($Z$3="ü",ObtenerMesVBA(F33)=$B$5),ObtenerDíaVBA(F33),""),"")) -> 29 | G11: =HYPERLINK(MouseOver(G33),IFERROR(IF(OR($Z$3="ü",ObtenerMesVBA(G33)=$B$5),ObtenerDíaVBA(G33),""),"")) -> 30 | H11: =HYPERLINK(MouseOver(H33),IFERROR(IF(OR($Z$3="ü",ObtenerMesVBA(H33)=$B$5),ObtenerDíaVBA(H33),""),"")) -> 31 | K11: =HYPERLINK(MouseOver(K33),IFERROR(IF(OR($Z$3="ü",ObtenerMesVBA(K33)=$K$5),ObtenerDíaVBA(K33),""),"")) -> 29 | L11: =HYPERLINK(MouseOver(L33),IFERROR(IF(OR($Z$3="ü",ObtenerMesVBA(L33)=$K$5),ObtenerDíaVBA(L33),""),"")) -> 30 | M11: =HYPERLINK(MouseOver(M33),IFERROR(IF(OR($Z$3="ü",ObtenerMesVBA(M33)=$K$5),ObtenerDíaVBA(M33),""),"")) ->  | N11: =HYPERLINK(MouseOver(N33),IFERROR(IF(OR($Z$3="ü",ObtenerMesVBA(N33)=$K$5),ObtenerDíaVBA(N33),""),"")) ->  | O11: =HYPERLINK(MouseOver(O33),IFERROR(IF(OR($Z$3="ü",ObtenerMesVBA(O33)=$K$5),ObtenerDíaVBA(O33),""),"")) ->  | P11: =HYPERLINK(MouseOver(P33),IFERROR(IF(OR($Z$3="ü",ObtenerMesVBA(P33)=$K$5),ObtenerDíaVBA(P33),""),"")) ->  | Q11: =HYPERLINK(MouseOver(Q33),IFERROR(IF(OR($Z$3="ü",ObtenerMesVBA(Q33)=$K$5),ObtenerDíaVBA(Q33),""),"")) ->  | T11: =HYPERLINK(MouseOver(T33),IFERROR(IF(OR($Z$3="ü",ObtenerMesVBA(T33)=$T$5),ObtenerDíaVBA(T33),""),"")) -> 27 | U11: =HYPERLINK(MouseOver(U33),IFERROR(IF(OR($Z$3="ü",ObtenerMesVBA(U33)=$T$5),ObtenerDíaVBA(U33),""),"")) -> 28 | V11: =HYPERLINK(MouseOver(V33),IFERROR(IF(OR($Z$3="ü",ObtenerMesVBA(V33)=$T$5),ObtenerDíaVBA(V33),""),"")) -> 29 | W11: =HYPERLINK(MouseOver(W33),IFERROR(IF(OR($Z$3="ü",ObtenerMesVBA(W33)=$T$5),ObtenerDíaVBA(W33),""),"")) -> 30 | X11: =HYPERLINK(MouseOver(X33),IFERROR(IF(OR($Z$3="ü",ObtenerMesVBA(X33)=$T$5),ObtenerDíaVBA(X33),""),"")) -> 31 | Y11: =HYPERLINK(MouseOver(Y33),IFERROR(IF(OR($Z$3="ü",ObtenerMesVBA(Y33)=$T$5),ObtenerDíaVBA(Y33),""),"")) ->  | Z11: =HYPERLINK(MouseOver(Z33),IFERROR(IF(OR($Z$3="ü",ObtenerMesVBA(Z33)=$T$5),ObtenerDíaVBA(Z33),""),"")) -> 
B12: =HYPERLINK(MouseOver(B34),IFERROR(IF(OR($Z$3="ü",ObtenerMesVBA(B34)=$B$5),ObtenerDíaVBA(B34),""),"")) ->  | C12: =HYPERLINK(MouseOver(C34),IFERROR(IF(OR($Z$3="ü",ObtenerMesVBA(C34)=$B$5),ObtenerDíaVBA(C34),""),"")) ->  | D12: =HYPERLINK(MouseOver(D34),IFERROR(IF(OR($Z$3="ü",ObtenerMesVBA(D34)=$B$5),ObtenerDíaVBA(D34),""),"")) ->  | E12: =HYPERLINK(MouseOver(E34),IFERROR(IF(OR($Z$3="ü",ObtenerMesVBA(E34)=$B$5),ObtenerDíaVBA(E34),""),"")) ->  | F12: =HYPERLINK(MouseOver(F34),IFERROR(IF(OR($Z$3="ü",ObtenerMesVBA(F34)=$B$5),ObtenerDíaVBA(F34),""),"")) ->  | G12: =HYPERLINK(MouseOver(G34),IFERROR(IF(OR($Z$3="ü",ObtenerMesVBA(G34)=$B$5),ObtenerDíaVBA(G34),""),"")) ->  | H12: =HYPERLINK(MouseOver(H34),IFERROR(IF(OR($Z$3="ü",ObtenerMesVBA(H34)=$B$5),ObtenerDíaVBA(H34),""),"")) ->  | K12: =HYPERLINK(MouseOver(K34),IFERROR(IF(OR($Z$3="ü",ObtenerMesVBA(K34)=$K$5),ObtenerDíaVBA(K34),""),"")) ->  | L12: =HYPERLINK(MouseOver(L34),IFERROR(IF(OR($Z$3="ü",ObtenerMesVBA(L34)=$K$5),ObtenerDíaVBA(L34),""),"")) ->  | M12: =HYPERLINK(MouseOver(M34),IFERROR(IF(OR($Z$3="ü",ObtenerMesVBA(M34)=$K$5),ObtenerDíaVBA(M34),""),"")) ->  | N12: =HYPERLINK(MouseOver(N34),IFERROR(IF(OR($Z$3="ü",ObtenerMesVBA(N34)=$K$5),ObtenerDíaVBA(N34),""),"")) ->  | O12: =HYPERLINK(MouseOver(O34),IFERROR(IF(OR($Z$3="ü",ObtenerMesVBA(O34)=$K$5),ObtenerDíaVBA(O34),""),"")) ->  | P12: =HYPERLINK(MouseOver(P34),IFERROR(IF(OR($Z$3="ü",ObtenerMesVBA(P34)=$K$5),ObtenerDíaVBA(P34),""),"")) ->  | Q12: =HYPERLINK(MouseOver(Q34),IFERROR(IF(OR($Z$3="ü",ObtenerMesVBA(Q34)=$K$5),ObtenerDíaVBA(Q34),""),"")) ->  | T12: =HYPERLINK(MouseOver(T34),IFERROR(IF(OR($Z$3="ü",ObtenerMesVBA(T34)=$T$5),ObtenerDíaVBA(T34),""),"")) ->  | U12: =HYPERLINK(MouseOver(U34),IFERROR(IF(OR($Z$3="ü",ObtenerMesVBA(U34)=$T$5),ObtenerDíaVBA(U34),""),"")) ->  | V12: =HYPERLINK(MouseOver(V34),IFERROR(IF(OR($Z$3="ü",ObtenerMesVBA(V34)=$T$5),ObtenerDíaVBA(V34),""),"")) ->  | W12: =HYPERLINK(MouseOver(W34),IFERROR(IF(OR($Z$3="ü",ObtenerMesVBA(W34)=$T$5),ObtenerDíaVBA(W34),""),"")) ->  | X12: =HYPERLINK(MouseOver(X34),IFERROR(IF(OR($Z$3="ü",ObtenerMesVBA(X34)=$T$5),ObtenerDíaVBA(X34),""),"")) ->  | Y12: =HYPERLINK(MouseOver(Y34),IFERROR(IF(OR($Z$3="ü",ObtenerMesVBA(Y34)=$T$5),ObtenerDíaVBA(Y34),""),"")) ->  | Z12: =HYPERLINK(MouseOver(Z34),IFERROR(IF(OR($Z$3="ü",ObtenerMesVBA(Z34)=$T$5),ObtenerDíaVBA(Z34),""),"")) -> 
B14: û | C14: =" " & Idiomas!$A$15 -> Evento activo de ratón sobre celda | K14: 9 | L14: 7 | M14: 3 | N14: ; | O14: 4 | P14: 8 | Q14: : | Y14: =Idiomas!$A$14 & " " -> Velocidad de la animación | Z14: 1
A15: =MAX(IF(Rango_NSerie_Fechas<Rango_Día,Rango_NSerie_Fechas,-999999)) -> -222218 | Z15: =MIN(IF(Rango_NSerie_Fechas>Rango_Día,Rango_NSerie_Fechas,9999999)) -> -115792
A16: × | B16: =ObtenerDíaElegido(Rango_Día) -> viernes, 15 de octubre de 1582 | Z16: Ø | AA16: -115858
B17: =INDEX(Rango_Eventos_Día,4*Rango_Página-3,1) -> Primer día Gregoriano en Italia, España, Polonia, Portugal y USA: Texas, Florida, California, Nevada, Arizona y New Mexico (eliminados 10 días) | H17: =INDEX(Rango_Eventos_Día,4*Rango_Página-2,1) ->  | N17: =INDEX(Rango_Eventos_Día,4*Rango_Página-1,1) ->  | T17: =INDEX(Rango_Eventos_Día,4*Rango_Página,1) ->  | Z17: Ù
Z18: 1
Z19: Ú
B21: =Idiomas!$A$2 -> AUTOR | D21: #ExcelPedroWave
B22: =Idiomas!$A$3 -> BLOG | D22: https://pedrowave.blogspot.com
B23: COPYRIGHT | D23: https://creativecommons.org/licenses/by-nc-sa/4.0/deed.en
A25: Ú
A27: =IF(TEXT(Rango_AñoCen,"00") & TEXT(Rango_AñoUni,"00") & "-" & TEXT(B$27,"00")="0100-00",2958435, ObtenerSerieFechaISO(TEXT(Rango_AñoCen,"00") & TEXT(Rango_AñoUni,"00") & "-" & TEXT(B$27,"00") & "-01")) -> -115872 | B27: =K27-1 -> 10 | C27: =C5 -> 2024-10-01 | G27: =LEFT(TEXT(ObtenerAñoVBA(A27),"0000"),2) -> 15 | H27: =RIGHT(TEXT(ObtenerAñoVBA(A27),"0000"),2) -> 82 | J27: =ObtenerSerieFechaISO(TEXT(Rango_AñoCen,"00") & TEXT(Rango_AñoUni,"00") & "-" & TEXT(K$27,"00") & "-01") -> -115841 | K27: =Rango_MesNum -> 11 | L27: =Rango_MesNom -> 2024-11-01 | P27: =Rango_AñoCen -> 15 | Q27: =Rango_AñoUni -> 82 | S27: =IFERROR(ObtenerSerieFechaISO(TEXT(Rango_AñoCen,"00") & TEXT(Rango_AñoUni,"00") & "-" & TEXT(T$27,"00") & "-01"),-657434) -> -115811 | T27: =K27+1 -> 12 | U27: =U5 -> 2024-12-01 | Y27: =LEFT(TEXT(ObtenerAñoVBA(S27),"0000"),2) -> 15 | Z27: =RIGHT(TEXT(ObtenerAñoVBA(S27),"0000"),2) -> 82
B28: =Rango_DíaSemana -> 1900-01-02 | C28: =B28+1 -> 1900-01-03 | D28: =C28+1 -> 1900-01-04 | E28: 1900-01-05 | F28: 1900-01-06 | G28: 1900-01-07 | H28: 1900-01-08 | K28: =Rango_DíaSemana -> 1900-01-02 | L28: =K28+1 -> 1900-01-03 | M28: =L28+1 -> 1900-01-04 | N28: 1900-01-05 | O28: 1900-01-06 | P28: 1900-01-07 | Q28: 1900-01-08 | T28: =Rango_DíaSemana -> 1900-01-02 | U28: =T28+1 -> 1900-01-03 | V28: =U28+1 -> 1900-01-04 | W28: 1900-01-05 | X28: 1900-01-06 | Y28: 1900-01-07 | Z28: 1900-01-08
B29: =$A$27+1-ObtenerNúmDíaSemanaVBA($A$27,Rango_DíaSemana) -> -115876 | C29: =B29+1 -> -115875 | D29: =C29+1 -> -115874 | E29: =D29+1 -> -115873 | F29: =E29+1 -> -115872 | G29: =F29+1 -> -115871 | H29: =G29+1 -> -115870 | K29: =$J$27+1-ObtenerNúmDíaSemanaVBA($J$27,Rango_DíaSemana) -> -115841 | L29: =K29+1 -> -115840 | M29: =L29+1 -> -115839 | N29: =M29+1 -> -115838 | O29: =N29+1 -> -115837 | P29: =O29+1 -> -115836 | Q29: =P29+1 -> -115835 | T29: =$S$27+1-ObtenerNúmDíaSemanaVBA($S$27,Rango_DíaSemana) -> -115813 | U29: =T29+1 -> -115812 | V29: =U29+1 -> -115811 | W29: =V29+1 -> -115810 | X29: =W29+1 -> -115809 | Y29: =X29+1 -> -115808 | Z29: =Y29+1 -> -115807
B30: =H29+1 -> -115869 | C30: -115868 | D30: -115867 | E30: -115866 | F30: -115865 | G30: -115864 | H30: -115863 | K30: =Q29+1 -> -115834 | L30: -115833 | M30: -115832 | N30: -115831 | O30: -115830 | P30: =O30+1 -> -115829 | Q30: -115828 | T30: =Z29+1 -> -115806 | U30: -115805 | V30: -115804 | W30: -115803 | X30: -115802 | Y30: =X30+1 -> -115801 | Z30: -115800
B31: =H30+1 -> -115862 | C31: -115861 | D31: -115860 | E31: -115859 | F31: -115858 | G31: -115857 | H31: -115856 | K31: =Q30+1 -> -115827 | L31: -115826 | M31: -115825 | N31: -115824 | O31: -115823 | P31: -115822 | Q31: -115821 | T31: =Z30+1 -> -115799 | U31: -115798 | V31: -115797 | W31: -115796 | X31: -115795 | Y31: -115794 | Z31: -115793
B32: =H31+1 -> -115855 | C32: -115854 | D32: -115853 | E32: -115852 | F32: -115851 | G32: -115850 | H32: -115849 | K32: =Q31+1 -> -115820 | L32: -115819 | M32: -115818 | N32: -115817 | O32: -115816 | P32: -115815 | Q32: -115814 | T32: =Z31+1 -> -115792 | U32: -115791 | V32: -115790 | W32: -115789 | X32: -115788 | Y32: -115787 | Z32: -115786
B33: =H32+1 -> -115848 | C33: -115847 | D33: -115846 | E33: -115845 | F33: -115844 | G33: -115843 | H33: -115842 | K33: =Q32+1 -> -115813 | L33: -115812 | M33: -115811 | N33: -115810 | O33: -115809 | P33: -115808 | Q33: -115807 | T33: =Z32+1 -> -115785 | U33: -115784 | V33: -115783 | W33: -115782 | X33: -115781 | Y33: -115780 | Z33: -115779
B34: =H33+1 -> -115841 | C34: -115840 | D34: -115839 | E34: -115838 | F34: -115837 | G34: -115836 | H34: -115835 | K34: =Q33+1 -> -115806 | L34: -115805 | M34: -115804 | N34: -115803 | O34: -115802 | P34: -115801 | Q34: -115800 | T34: =Z33+1 -> -115778 | U34: -115777 | V34: -115776 | W34: -115775 | X34: -115774 | Y34: -115773 | Z34: -115772
S36: =Idiomas!$A$19 -> Primer día gregoriano: | T36: =IFERROR(SMALL(IF(LEFT(Rango_Eventos,10)="Primer día",ROW(Rango_Eventos)-MIN(ROW(Rango_Fechas))+1,""),ROW()-ROW(T35)),0) -> 1 | U36: =IF(T36=0,"",INDEX(Rango_Fechas,T36)) -> 01-01-0100
T37: 3 | U37: 15-10-1582 | X37: =INDEX(Rango_MesesNom,Rango_PonNumMes,1) -> 2024-11-01 | Z37: 11
B38: =Idiomas!$A$8 & " " & Rango_Día_Elegido -> Eventos del viernes, 15 de octubre de 1582 | R38: =Idiomas!$A$16 -> Fila | T38: 4 | U38: 20-12-1582 | X38: =Idiomas!$A$9 -> Meses | Z38: =Idiomas!$A$10 -> Núm
B39: =IF(R39=0,"",INDEX(Rango_Eventos,R39)) -> Primer día Gregoriano en Italia, España, Polonia, Portugal y USA: Texas, Florida, California, Nevada, Arizona y New Mexico (eliminados 10 días) | R39: =IFERROR(SMALL(IF(Rango_Día=Rango_NSerie_Fechas,ROW(Rango_Eventos)-MIN(ROW(Rango_NSerie_Fechas))+1,""),ROW()-ROW(B38)),0) -> 3 | T39: 5 | U39: 11-01-1583 | X39: 2024-01-01 | Z39: 1
R40: 0 | T40: 6 | U40: 16-10-1583 | X40: 2024-02-01 | Z40: 2
R41: 0 | T41: 7 | U41: 01-11-1587 | X41: 2024-03-01 | Z41: 3
R42: 0 | T42: 8 | U42: 02-09-1610 | X42: 2024-04-01 | Z42: 4
R43: 0 | T43: 10 | U43: 01-03-1700 | X43: 2024-05-01 | Z43: 5
R44: 0 | T44: 11 | U44: 14-09-1752 | X44: 2024-06-01 | Z44: 6
R45: 0 | T45: 34 | U45: 01-01-1873 | X45: 2024-07-01 | Z45: 7
R46: 0 | T46: 37 | U46: 1900-03-01 | X46: 2024-08-01 | Z46: 8
R47: 0 | T47: 44 | U47: 1916-04-14 | X47: 2024-09-01 | Z47: 9
R48: 0 | T48: 46 | U48: 1918-02-14 | X48: 2024-10-01 | Z48: 10
R49: 0 | T49: 55 | U49: 1923-03-01 | X49: 2024-11-01 | Z49: 11
R50: 0 | T50: 56 | U50: 1927-01-01 | X50: 2024-12-01 | Z50: 12

Sheet Fechas
A1: Fecha | B1: Evento | C1: Núm. Serie VBA
A2: 01-01-0100 | B2: Primer día de VBA | C2: =ObtenerSerieFechaVBA(A2, ISNUMBER(A2)) -> -657434
A3: 01-08-1291 | B3: Suiza - Alianza contra el Sacro Imperio Romano Germánico en 1291. | C3: =ObtenerSerieFechaVBA(A3, ISNUMBER(A3)) -> -222218
A4: 15-10-1582 | B4: Primer día Gregoriano en Italia, España, Polonia, Portugal y USA: Texas, Florida, California, Nevada, Arizona y New Mexico (eliminados 10 días) | C4: -115858
A5: 20-12-1582 | B5: Primer día Gregoriano en Francia y USA: Mississippi Valley (eliminados 10 días) | C5: -115792
A6: 11-01-1583 | B6: Primer día Gregoriano en Alemania Católica (eliminados 10 días) | C6: =ObtenerSerieFechaVBA(A6, ISNUMBER(A6)) -> -115770
A7: 16-10-1583 | B7: Primer día Gregoriano en Austria (eliminados 10 días) | C7: =ObtenerSerieFechaVBA(A7, ISNUMBER(A7)) -> -115492
A8: 01-11-1587 | B8: Primer día Gregoriano en Hungría (eliminados 10 días) | C8: =ObtenerSerieFechaVBA(A8, ISNUMBER(A8)) -> -114015
A9: 02-09-1610 | B9: Primer día Gregoriano en Alemania - Prusia (eliminados 10 días) | C9: =ObtenerSerieFechaVBA(A9, ISNUMBER(A9)) -> -105674
A10: 01-12-1640 | B10: Portugal - Restauración de la independencia de Portugal (de España) en 1640. | C10: -94626
A11: 01-03-1700 | B11: Primer día Gregoriano en Alemania y Suiza - Areas Protestantes (eliminados 10 días) | C11: =ObtenerSerieFechaVBA(A11, ISNUMBER(A11)) -> -72987
A12: 14-09-1752 | B12: Primer día Gregoriano en Inglaterra (y colonias), Canada y USA: Washington, Oregon, and the Eastern Seaboard (eliminados 11 días) | C12: -53797
A13: 03-09-1783 | B13: Estados Unidos de América - (4 de julio) Declaración de la independencia del Reino Unido en 1776. Consumada el 3 de septiembre de 1783. | C13: -42486
A14: 01-01-1804 | B14: Haití - Independencia de Francia en 1804. | C14: -35062
A15: 20-07-1810 | B15: Colombia - Día de la independencia De España. Declaración de la independencia: 20 de julio de 1810. | C15: -32670
A16: 16-09-1810 | B16: México - Independencia de España declarada en 1810. | C16: -32612
A17: 15-05-1811 | B17: Paraguay - (Día de Independencia) Independencia de España en 1811. | C17: -32371
A18: 05-07-1811 | B18: Venezuela - Declaración de la independencia de España en 1811. | C18: -32320
A19: 09-07-1816 | B19: Argentina - Independencia de España en 1816. | C19: -30489
A20: 12-02-1818 | B20: Chile - Se declaró su independencia de España, que fue reconocida por el gobierno español el 24 de abril de 1844. | C20: -29906
A21: 25-03-1821 | B21: Grecia - Declaración de la independencia del Imperio otomano en 1821. | C21: -28769
A22: 28-07-1821 | B22: Perú - Independencia de España en 1821. | C22: -28644
A23: 15-09-1821 | B23: Costa Rica - Independencia de España en 1821. | C23: -28595
A24: 15-09-1821 | B24: El Salvador - Independencia de España en 1821. | C24: -28595
A25: 15-09-1821 | B25: Guatemala - Independencia de España en 1821. | C25: -28595
A26: 15-09-1821 | B26: Honduras - Independencia del España en 1821. | C26: -28595
A27: 15-09-1821 | B27: Nicaragua - Independencia de España en 1821 | C27: -28595
A28: 24-05-1822 | B28: Ecuador - Independencia de España el 10 de agosto de 1809. La Independencia real ocurrió el 24 de mayo de 1822. | C28: -28344
A29: 07-09-1822 | B29: Brasil - Declarada la Independencia de Portugal en esa fecha en 1822. No fue reconocida hasta el 29 de agosto de 1825. | C29: -28238
A30: 06-08-1825 | B30: Bolivia - Independencia de España en 1825. | C30: -27174
A31: 25-08-1828 | B31: Uruguay - Declaración de independencia de las Provincias Unidas del Río de la Plata en 1828. | C31: -26059
A32: 27-02-1844 | B32: República Dominicana - Independencia de Haití en 1844. | C32: -20395
A33: 26-07-1847 | B33: Liberia - Independencia de los Estados Unidos en 1847. | C33: -19150
A34: 01-07-1867 | B34: Canadá - Independencia del Reino Unido (reconocida en 1931 con el Tratado de Westminster) en 1867. | C34: -11870
A35: 01-01-1873 | B35: Primer día Gregoriano en Japón (eliminados 12 días) | C35: =ObtenerSerieFechaVBA(A35, ISNUMBER(A35)) -> -9859
A36: 09-05-1877 | B36: Rumanía - Independencia del Imperio otomano en 1877. | C36: -8270
A37: 12-06-1898 | B37: Filipinas - El Día de la Independencia Day de Filipinas: Araw ng Kalayaan. Independencia de España en 1898. | C37: -566
A38: 1900-03-01 | B38: Primer día de Excel | C38: 61
A39: 1901-01-01 | B39: Australia - Independencia del Reino Unido en 1901. | C39: 367
A40: 1903-11-03 | B40: Panamá - Independencia de España en 1821. Es también celebrado el 3 de noviembre, como el Día de la Separación de Colombia de 1903 | C40: 1403
A41: 1905-05-17 | B41: Noruega - Independencia de Suecia en 1905. Celebrada el 17 de mayo, el Día de la Constitución de Noruega en Eidsvoll en 1814. | C41: 1964
A42: 1907-07-01 | B42: Nueva Zelanda - Independencia del Reino Unido (reconocida en 1931 con el Tratado de Westminster) en 1907. | C42: 2739
A43: 1908-09-22 | B43: Bulgaria - Independencia De jure del Imperio otomano en 1908 | C43: 3188
A44: 1912-11-28 | B44: Albania - Independencia del Imperio otomano en 1912. | C44: 4716
A45: 1916-04-14 | B45: Primer día Gregoriano en Bulgaria (eliminados 13 días) | C45: =ObtenerSerieFechaVBA(A45, ISNUMBER(A45)) -> 5949
A46: 1917-12-06 | B46: Finlandia - Independencia de Rusia in 1917. | C46: 6550
A47: 1918-02-14 | B47: Primer día Gregoriano en Rusia y Estonia (eliminados 13 días) | C47: =ObtenerSerieFechaVBA(A47, ISNUMBER(A47)) -> 6620
A48: 1918-02-24 | B48: Estonia - Independencia de Rusia Bolchevique en 1918. | C48: 6630
A49: 1918-10-28 | B49: República Checa - Como Checoslovaquia, marca la restauración de la independencia del Imperio austrohúngaro en 1918. | C49: 6876
A50: 1918-10-31 | B50: Austria - Independencia del Imperio austrohúngaro en 1918. | C50: 6879
A51: 1918-11-11 | B51: Polonia - (Święto Niepodległości) Restauración de la independencia de Polonia en 1918. | C51: 6890
A52: 1918-11-18 | B52: Letonia - Independencia de Rusia en 1918. | C52: 6897
A53: 1919-08-19 | B53: Afganistán - Independencia del Reino Unido en 1919. | C53: 7171
A54: 1921-11-26 | B54: Mongolia - Independencia de China el 11 de julio de 1921 | C54: 8001
A55: 1922-12-06 | B55: República de Irlanda - Independencia del Reino Unido en 1922. | C55: 8376
A56: 1923-03-01 | B56: Primer día Gregoriano en Grecia (eliminados 13 días) | C56: =ObtenerSerieFechaVBA(A56, ISNUMBER(A56)) -> 8461
A57: 1927-01-01 | B57: Primer día Gregoriano en Turquía (eliminados 13 días) | C57: =ObtenerSerieFechaVBA(A57, ISNUMBER(A57)) -> 9863
A58: 1929-02-11 | B58: Vaticano - Tratado Laterano firmado con Italia en 1929. | C58: 10635
A59: 1931-12-11 | B59: Sudáfrica - Independencia del Reino Unido en 1931. No es un Feriado público. La Unión Sudafricana se formó e 31 de mayo de 1910 y La República Sudafricana se declaró el 31 de mayo de 1961. | C59: 11668
A60: 1943-11-22 | B60: Líbano - Independencia de Francia en 1943. | C60: 16032
A61: 1944-06-17 | B61: Islandia - Independencia de Dinamarca en 1944. | C61: 16240
A62: 1944-07-03 | B62: Bielorrusia - Liberación de Minsk de la ocupación Alemana por tropas Soviéticas en 1944. | C62: 16256
A63: 1945-08-15 | B63: Corea del Sur - (Gwangbokjeol) Independencia del Japón en 1945. | C63: 16664
A64: 1945-08-17 | B64: Indonesia - Proclamación de la independencia (Hari Proklamasi Kemerdekaan R.I.) de Holanda. Independencia de Japón en 1945. | C64: 16666
A65: 1945-09-02 | B65: Vietnam - Declaración de la independencia de Francia en 1945. | C65: 16682
A66: 1946-05-25 | B66: Jordania - Independencia del Reino Unido en 1946. | C66: 16947
A67: 1947-08-14 | B67: Pakistán - (Yaum e Azadi) Independencia del Reino Unido en 1947. | C67: 17393
A68: 1947-08-15 | B68: India - Día de la independencia (en India: Independencia viene a ser Libertad / Azaadi)]] del Reino Unido en 1947. | C68: 17394
A69: 1948-01-04 | B69: Birmania - Independencia del Reino Unido en 1948 | C69: 17536
A70: 1948-02-04 | B70: Sri Lanka - Independencia del Reino Unido en 1948. | C70: 17567
A71: 1948-05-14 | B71: Israel - Independencia fue proclamada cuando se independizó del Mandato Británico de Palestina (Reino Unido) el 14 de mayo de 1948. | C71: 17667
A72: 1948-09-09 | B72: Corea del Norte - Fundación del DPRK en 1948. | C72: 17785
A73: 1956-03-02 | B73: Marruecos - Independencia de Francia y España en 1956 | C73: 20516
A74: 1956-03-20 | B74: Túnez - Declaración de independencia de Francia en 1956. | C74: 20534
A75: 1957-03-06 | B75: Ghana - Independencia del Reino Unido en 1957. | C75: 20885
A76: 1957-08-31 | B76: Malasia - (Hari Merdeka) Independencia del Reino Unido en 1957 | C76: 21063
A77: 1960-06-26 | B77: Madagascar - Independencia de Francia en 1960. | C77: =ObtenerSerieFechaVBA(A77, ISNUMBER(A77)) -> 22093
A78: 1960-06-30 | B78: República Democrática del Congo - Independencia de Bélgica en 1960. | C78: 22097
A79: 1960-08-01 | B79: Benín - Independencia de Francia en 1960. | C79: 22129
A80: 1960-08-03 | B80: Níger - Independencia de Francia en 1960 | C80: 22131
A81: 1960-08-05 | B81: Burkina Faso - Independencia de Francia en 1960 | C81: 22133
A82: 1960-08-11 | B82: Chad - Independencia de Francia en 1960. | C82: 22139
A83: 1960-08-16 | B83: Chipre - Independencia de Reino Unido el 16 de agosto de 1960 | C83: 22144
A84: 1960-09-22 | B84: Malí - Independencia de Francia en 1960 | C84: 22181
A85: 1960-10-01 | B85: Nigeria - Independencia del Reino Unido en 1960 | C85: 22190
A86: 1961-01-26 | B86: Kuwait - Independencia del Reino Unido en 1961. | C86: 22307
A87: 1961-04-27 | B87: Sierra Leona - Independencia del Reino Unido en 1961. | C87: 22398
A88: 1961-12-09 | B88: Tanzania - Declaración de la independencia del Reino Unido en 1961. | C88: 22624
A89: 1962-07-01 | B89: Burundi - Independencia de Bélgica en 1962. | C89: 22828
A90: 1962-07-01 | B90: Ruanda - Independencia de Bélgica en 1962. | C90: 22828
A91: 1962-07-05 | B91: Argelia - Independencia de Francia en 1962. | C91: 22832
A92: 1962-08-06 | B92: Jamaica - Independencia del Reino Unido en 1962. | C92: 22864
A93: 1962-08-31 | B93: Trinidad y Tobago - Independencia del Reino Unido en 1962. | C93: 22889
A94: 1963-12-12 | B94: Kenia - Independencia del Reino Unido en 1963. | C94: 23357
A95: 1964-07-06 | B95: Malaui - Independencia del Reino Unido en 1964. | C95: 23564
A96: 1964-09-21 | B96: Malta - Independencia del Reino Unido en 1964. | C96: 23641
A97: 1964-10-24 | B97: Zambia - Declaración de la independencia del Reino Unido en 1964. | C97: 23674
A98: 1965-02-18 | B98: Gambia - Independencia del Reino Unido en 1965. | C98: 23791
A99: 1965-07-26 | B99: Maldivas - Independencia del Reino Unido en 1965 | C99: 23949
A100: 1965-08-09 | B100: Singapur - (Fiesta Nacional) marca la separación de Malasia en 1965. | C100: 23963
A101: 1966-05-26 | B101: Guyana - Independencia del Reino Unido en 1966. | C101: 24253
A102: 1966-09-30 | B102: Botsuana - Emancipación del Reino Unido en 1966. | C102: 24380
A103: 1966-10-04 | B103: Lesoto - Independencia del Reino Unido en 1966. | C103: 24384
A104: 1966-11-30 | B104: Barbados - Independencia del Reino Unido en 1966. | C104: 24441
A105: 1967-11-30 | B105: Yemen - Declaración de la independencia del Reino Unido en 1967. | C105: 24806
A106: 1968-03-12 | B106: Mauricio - Independencia del Reino Unido en 1968. | C106: 24909
A107: 1968-09-06 | B107: Suazilandia - Independencia del Reino Unido en 1968. | C107: 25087
A108: 1970-06-04 | B108: Tonga - Independencia del Reino Unido en 1970. | C108: 25723
A109: 1971-03-26 | B109: Bangladés - Independencia fue declarada de Pakistán y originó una guerra de 9 meses, terminando el 16 de diciembre de 1971. | C109: 26018
A110: 1971-08-15 | B110: Baréin - Independencia del Reino Unido en 1971. | C110: 26160
A111: 1971-09-03 | B111: Catar - Independencia del Reino Unido en 1971. | C111: 26179
A112: 1971-12-02 | B112: Emiratos Árabes Unidos - (Día Nacional) Independencia del Reino Unido en 1971. | C112: 26269
A113: 1973-07-10 | B113: Bahamas - Independencia del Reino Unido en 1973. | C113: 26855
A114: 1973-09-24 | B114: Guinea-Bissau - Independencia de Portugal en 1973 | C114: 26931
A115: 1975-06-25 | B115: Mozambique - Independencia de Portugal en 1975 | C115: 27570
A116: 1975-07-05 | B116: Cabo Verde - Independencia del Portugal en 1975. | C116: 27580
A117: 1975-07-12 | B117: Santo Tomé y Príncipe - Independencia de Portugal en 1975. | C117: 27587
A118: 1975-09-16 | B118: Nueva Guinea - Independencia de Australia de los territorios de Nueva Guinea, y Papua, en 1975. | C118: 27653
A119: 1975-11-11 | B119: Angola - Independencia de Portugal en 1975. | C119: 27709
A120: 1975-11-25 | B120: Surinam - Independencia de Holanda en 1975. | C120: 27723
A121: 1976-06-29 | B121: Seychelles - Independencia del Reino Unido en 1976. | C121: 27940
A122: 1980-04-18 | B122: Zimbabue - Declaración de la independencia del Reino Unido en 1980. | C122: 29329
A123: 1981-09-21 | B123: Belice - Independencia del Reino Unido en 1981. | C123: 29850
A124: 1981-11-01 | B124: Antigua y Barbuda - Independencia del Reino Unido en 1981. | C124: 29891
A125: 1984-01-01 | B125: Brunéi - Independencia del Reino Unido en 1984 | C125: 30682
A126: 1989-11-17 | B126: Las Repúblicas Eslovacas - Como Checoslovaquia, marca la Revolución de 1989. | C126: 32829
A127: 1990-03-11 | B127: Lituania - Independencia de Rusia y Alemania en febrero de 1918; independencia de la Unión Soviética en marzo de 1990. | C127: 32943
A128: 1990-03-21 | B128: Namibia - Independencia de Sudáfrica por mandato en 1990 | C128: 32953
A129: 1990-12-26 | B129: Eslovenia - La fecha de la publicación oficial de los resultados del plebiscito por la independencia en 1990. | C129: 33233
A130: 1991-05-25 | B130: República de Macedonia del Norte - (Den na nezavisnosta o Ден на независноста) Independencia de Yugoslavia en 1991. | C130: 33383
A131: 1991-05-26 | B131: Georgia - Independencia de la Unión Soviética en 1991. | C131: 33384
A132: 1991-06-12 | B132: Rusia - (El día de Rusia). La separación formal de la Unión Soviética es el 25 de diciembre de 1991. | C132: 33401
A133: 1991-08-24 | B133: Ucrania - Independencia de la Unión Soviética en 1991. | C133: 33474
A134: 1991-08-27 | B134: Moldavia - Independencia de la Unión Soviética en 1991 | C134: 33477
A135: 1991-08-31 | B135: Kirguistán - Independencia de la Unión Soviética en 1991. | C135: 33481
A136: 1991-09-01 | B136: Uzbekistán - Independencia de la Unión Soviética en 1991. | C136: 33482
A137: 1991-09-09 | B137: Tayikistán - Independencia de la Unión Soviética en 1991. | C137: 33490
A138: 1991-09-21 | B138: Armenia - Independencia de la Unión Soviética en 1991. | C138: 33502
A139: 1991-10-08 | B139: Croacia - Independencia de Yugoslavia en 1991. | C139: 33519
A140: 1991-10-18 | B140: Azerbaiyán - Independencia de la Unión Soviética en 1991. | C140: 33529
A141: 1991-12-16 | B141: Kazajistán - Independencia de la Unión Soviética en 1991. | C141: =ObtenerSerieFechaVBA(A141, ISNUMBER(A141)) -> 33588
A142: 1992-03-01 | B142: Bosnia y Herzegovina - Independencia de Yugoslavia en 1992. | C142: 33664
A143: 1993-01-01 | B143: Eslovaquia - La independencia de la división de Checoslovaquia (feriado público) se efectuó el 1 de enero de 1993. | C143: 33970
A144: 1993-05-24 | B144: Eritrea - Independencia de Etiopía en 1993. | C144: 34113
A145: 2002-05-20 | B145: Timor del Este - Independencia de Indonesia en 2002. | C145: 37396
A146: 2006-05-21 | B146: Serbia - El comienzo de la primera rebelión en contra de la ocupación del Imperio otomano en 1804. La independencia contemporánea se produjo el 21 de mayo de 2006. | C146: 38858
A147: 2006-05-21 | B147: Montenegro - Su unión con Serbia acabó en 2006 | C147: 38858
A148: 2008-02-17 | B148: Kosovo - Declaración de la independencia de Serbia en 2008. | C148: 39495
A149: =TODAY() -> 2024-03-01 | B149: Hoy | C149: 45352
A150: 9999-12-31 | B150: Último día de Excel y VBA | C150: 2958465

Sheet Idiomas
A1: =Rango_Idioma_Elegido -> Español | B1: Español | C1: English
A2: =INDEX($B2:$C2,MATCH($A$1,$B$1:$C$1,0)) -> AUTOR | B2: AUTOR | C2: AUTHOR
A3: =INDEX($B3:$C3,MATCH($A$1,$B$1:$C$1,0)) -> BLOG | B3: BLOG | C3: BLOG
A4: Calendario Gregoriano | B4: Calendario Gregoriano | C4: Gregorian Calendar
A5: Error Calendario Gregoriano | B5: Error Calendario Gregoriano | C5: Gregorian Calendar Error
A6: La semana comienza en | B6: La semana comienza en | C6: Week starts in
A7: Muestra los días de otros meses | B7: Muestra los días de otros meses | C7: Shows the days of other months
A8: Eventos del | B8: Eventos del | C8: Events of
A9: Meses | B9: Meses | C9: Months
A10: Núm | B10: Núm | C10: No.
A11: Fecha | B11: Fecha | C11: Date
A12: Evento | B12: Evento | C12: Event
A13: Núm. Serie VBA | B13: Núm. Serie VBA | C13: VBA Serial No.
A14: Velocidad de la animación | B14: Velocidad de la animación | C14: Animation speed
A15: Evento activo de ratón sobre celda | B15: Evento activo de ratón sobre celda | C15: Mouseover cell event active
A16: Fila | B16: Fila | C16: Row
A17: Idioma: | B17: Idioma: | C17: Language:
A18: Calendario Gregoriano desde: | B18: Calendario Gregoriano desde: | C18: Gregorian Calendar from:
A19: Primer día gregoriano: | B19: Primer día gregoriano: | C19: First gregorian date:
